[Event "GER-ch Youth-U18 2022"]
[Site "Willingen"]
[Date "2022.06.11"]
[Round "9.11"]
[White "Rohde, Niclas"]
[Black "Muller, Magnus"]
[Result "1-0"]
[ECO "B12"]
[WhiteElo "1730"]
[BlackElo "1464"]
[Annotator "NA RC COMBH"]
[PlyCount "149"]
[EventDate "2022.06.05"]
[EventType "swiss"]
[EventRounds "9"]
[EventCountry "GER"]
[SourceTitle "playchess.com"]
[Source "ChessBase"]
[SourceQuality "1"]
[TimeControl "40/4500+30:900+30"]

1. e4 {[%emt 0:00:00]} c6 {[%emt 0:00:00]} 2. d4 {[%emt 0:00:00]} d5 {[%emt 0:00:00]} 3. e5 {[%emt 0:00:00]} c5 {[%emt 0:00:00]} 4. dxc5 {[%emt 0:00:00]} e6 {[%emt 0:00:00]} 5. a3 {[%emt 0:00:00]} Nc6 {[%emt 0:00:00]} 6. Nf3 {[%emt 0:00:00]} Bxc5 {[%emt 0:00:00]} 7. b4 {[%emt 0:00:00]} Bb6 {[%emt 0:00:00]} 8. Bd3 {[%emt 0:00:00]} Nge7 {[%emt 0:00:00]} 9. O-O {[%emt 0:00:00]} Ng6 {[%emt 0:00:00]} 10. Bb2 {[%emt 0:00:00]} O-O {[%emt 0:00:00]} 11. Re1 {[%emt 0:00:00]} a6 {[%emt 0:02:18]} 12. Nbd2 {[%emt 0:14:12]} Bc7 {[%emt 0:03:34]} 13. c4 {[%emt 0:10:10]} dxc4 {[%emt 0:00:30]} 14. Nxc4 {[%emt 0:00:53]} Qe7 {[%emt 0:07:24]} 15. Qc2 {[%emt 0:07:06]} Bd7 {[%emt 0:04:38]} 16. Rac1 {[%emt 0:04:52]} Rac8 {[%emt 0:04:05]} 17. Qb1 {[%emt 0:01:05]} Rfd8 {[%emt 0:11:01]} 18. Be4 {[%emt 0:15:25]} Be8 {[%emt 0:06:29]} 19. Rcd1 {[%emt 0:05:41]} b5 {[%emt 0:04:53]} 20. Ncd2 {[%emt 0:01:06]} a5 {[%emt 0:00:33]} 21. bxa5 {[%emt 0:05:43]} Bxa5 {[%emt 0:02:53]} 22. Re3 {[%emt 0:02:12]} Bb6 {[%emt 0:08:22]} 23. Rc3 {[%emt 0:01:51]} Qa7 {[%emt 0:01:42]} 24. Rf1 {[%emt 0:04:10]} Qb8 {[%emt 0:00:08]} 25. Nb3 {[%emt 0:04:20]} Nce7 {[%emt 0:06:57]} 26. Rxc8 {[%emt 0:02:35]} Rxc8 {[%emt 0:00:09]} 27. h4 {[%emt 0:00:41]} h6 {[%emt 0:03:40]} 28. Rd1 {[%emt 0:03:26]} Nf4 {[%emt 0:00:42]} 29. Rd2 {[%emt 0:00:19]} Qa7 {[%emt 0:00:54]} 30. Nbd4 {[%emt 0:01:20]} Nfd5 {[%emt 0:01:27]} 31. Qd3 {[%emt 0:00:37]} Rc4 {[%emt 0:02:04]} 32. g3 {[%emt 0:00:49]} Qa4 {[%emt 0:02:54]} 33. Rc2 {[%emt 0:02:20]} Bc5 {[%emt 0:01:25]} 34. Rxc4 {[%emt 0:00:59]} bxc4 {[%emt 0:02:11]} 35. Qc2 {[%emt 0:00:01]} c3 {[%emt 0:00:39]} 36. Qxa4 {[%emt 0:00:02]} Bxa4 {[%emt 0:00:05]} 37. Bc1 {[%emt 0:00:07]} Nb6 {[%emt 0:01:24]} 38. Bc2 {[%emt 0:00:29]} Nc6 {[%emt 0:02:22]} 39. Nb3 {[%emt 0:00:45]} Be7 {[%emt 0:00:40]} 40. Nbd4 {[%emt 0:00:46]} Bxc2 {[%emt 0:02:04]} 41. Nxc2 {[%emt 0:15:07]} Nc4 {[%emt 0:15:23]} 42. Kf1 {[%emt 0:00:00]} Bc5 {[%emt 0:00:00]} 43. Ke2 {[%emt 0:00:00]} Kf8 {[%emt 0:00:00]} 44. Kd3 {[%emt 0:00:00]} N4xe5+ {[%emt 0:00:00]} 45. Nxe5 {[%emt 0:00:00]} Nxe5+ {[%emt 0:00:00]} 46. Ke2 {[%emt 0:00:00]} Ke7 {[%emt 0:00:00]} 47. Be3 {[%emt 0:00:00]} Kd6 {[%emt 0:00:00]} 48. Bxc5+ {[%emt 0:00:00]} Kxc5 {[%emt 0:00:00]} 49. f4 {[%emt 0:00:00]} Ng4 {[%emt 0:00:00]} 50. Kd3 {[%emt 0:00:00]} Nf2+ {[%emt 0:00:00]} 51. Ke3 {[%emt 0:00:00]} Nd1+ {[%emt 0:00:00]} 52. Kd3 {[%emt 0:00:00]} h5 {[%emt 0:00:00]} 53. Nb4 {[%emt 0:00:00]} Nf2+ {[%emt 0:00:00]} 54. Ke3 {[%emt 0:00:00]} Nh1 {[%emt 0:00:00]} 55. Kf3 {[%emt 0:02:50]} Kb5 {[%emt 0:00:00]} 56. Na2 {[%emt 0:03:29]} Kc4 {[%emt 0:00:00]} 57. a4 {[%emt 0:00:37]} c2 {[%emt 0:00:00]} 58. a5 {[%emt 0:00:27]} Kb5 {[%emt 0:00:00]} 59. a6 {[%emt 0:00:09]} Kxa6 {[%emt 0:00:00]} 60. Nb4+ {[%emt 0:00:06]} Kb5 {[%emt 0:00:00]} 61. Nxc2 {[%emt 0:00:07]} Kc4 {[%emt 0:00:00]} 62. Kg2 {[%emt 0:00:48]} Kd3 {[%emt 0:00:00]} 63. Nb4+ {[%emt 0:00:24]} Ke2 {[%emt 0:00:00]} 64. Kxh1 {[%emt 0:00:11]} Kf3 {[%emt 0:00:00]} 65. Kh2 {[%emt 0:00:20]} f6 {[%emt 0:00:25]} 66. Nc6 {[%emt 0:00:22]} Kg4 {[%emt 0:00:41]} 67. Kg2 {[%emt 0:01:31]} g5 {[%emt 0:00:15]} 68. hxg5 {[%emt 0:02:05]} fxg5 {[%emt 0:00:18]} 69. fxg5 {[%emt 0:00:22]} Kxg5 {[%emt 0:00:11]} 70. Kh3 {[%emt 0:00:09]} Kf5 {[%emt 0:00:38]} 71. Kh4 {[%emt 0:00:06]} Kg6 {[%emt 0:00:03]} 72. Ne5+ {[%emt 0:00:34]} Kf5 {[%emt 0:00:40]} 73. Nd3 {[%emt 0:00:15]} e5 {[%emt 0:01:02]} 74. Kxh5 {[%emt 0:00:18]} e4 {[%emt 0:00:23]} 75. g4+ {[%emt 0:00:26]} 1-0

[Event "GER-ch Youth-U18 2022"]
[Site "Willingen"]
[Date "2022.06.11"]
[Round "9.12"]
[White "Orf, Niklas"]
[Black "Dietlmeier, Tobias"]
[Result "1-0"]
[ECO "C54"]
[WhiteElo "1797"]
[BlackElo "1886"]
[Annotator "NA RC COMBH"]
[PlyCount "75"]
[EventDate "2022.06.05"]
[EventType "swiss"]
[EventRounds "9"]
[EventCountry "GER"]
[SourceTitle "playchess.com"]
[Source "ChessBase"]
[SourceQuality "1"]
[TimeControl "40/4500+30:900+30"]

1. e4 {[%emt 0:00:00]} e5 {[%emt 0:00:00]} 2. Nf3 {[%emt 0:00:00]} Nc6 {[%emt 0:00:00]} 3. Bc4 {[%emt 0:00:00]} Bc5 {[%emt 0:00:00]} 4. c3 {[%emt 0:00:00]} Nf6 {[%emt 0:00:00]} 5. d3 {[%emt 0:00:00]} d6 {[%emt 0:00:00]} 6. Bb3 {[%emt 0:00:00]} h6 {[%emt 0:00:00]} 7. Nbd2 {[%emt 0:00:00] 7.0-0 is vanishing.} O-O {[%emt 0:00:00]} 8. h3 {[%emt 0:00:00]} Be6 {[%emt 0:00:00]} 9. Bc2 {[%emt 0:00:00]} Bb6 {[%emt 0:00:54]} 10. Nf1 {[%emt 0:00:00]} d5 {[%emt 0:04:37]} 11. Qe2 {[%emt 0:00:00]} Qe7 {[%emt 0:03:35]} 12. g4 {[%emt 0:06:33]} Nd7 {[%emt 0:06:08]} 13. Ng3 {[%emt 0:02:13]} dxe4 {[%emt 0:04:09]} 14. dxe4 {[%emt 0:01:42]} f6 {[%emt 0:05:55] [#]} 15. Nh4 $146 {[%emt 0:05:51]} ({Predecessor:} 15. Nf5 Bxf5 16. gxf5 Kf7 17. Nh4 Qd6 18. Qh5+ Ke7 19. Ng6+ Kd8 20. Nxf8 Nxf8 21. Rg1 {1-0 (28) Sural,C (1540)-Bladanli,A (1168) Antalya 2018}) 15... Rfd8 {[%emt 0:08:09]} (15... Qf7 $14 {is superior.}) 16. Nhf5 {[%emt 0:03:38]} Bxf5 {[%emt 0:05:32]} 17. Nxf5 {[%emt 0:01:08]} Qf8 {[%emt 0:01:41]} 18. h4 {[%emt 0:08:36]} Ne7 {[%emt 0:10:10]} 19. Bd2 {[%emt 0:04:34]} Nc5 {[%emt 0:03:19]} 20. O-O-O {[%emt 0:03:44]} Nxf5 {[%emt 0:05:34]} 21. exf5 {[%emt 0:00:29]} Qf7 $2 {[%emt 0:07:21]} (21... e4 {was worth a try.}) 22. Kb1 {[%emt 0:03:07]} a5 {[%emt 0:01:00]} 23. Be3 {[%emt 0:03:26]} Rxd1+ {[%emt 0:02:33]} 24. Rxd1 $18 {[%emt 0:00:25]} Qe7 {[%emt 0:01:19]} 25. Rd5 {[%emt 0:04:27]} Kh8 {[%emt 0:05:41]} 26. Qb5 {[%emt 0:04:25]} Na6 {[%emt 0:04:12]} 27. Bxb6 {[%emt 0:15:44]} c6 {[%emt 0:03:44]} 28. Rd8+ {[%emt 0:00:08]} Rxd8 {[%emt 0:00:10]} 29. Bxd8 {[%emt 0:00:07]} Qxd8 {[%emt 0:00:06]} 30. Qxb7 {[%emt 0:00:10]} Qd5 {[%emt 0:00:37]} 31. Qa8+ {[%emt 0:00:16]} Kh7 {[%emt 0:00:13]} 32. a4 {[%emt 0:03:59]} Qc4 {[%emt 0:03:28]} 33. f3 {[%emt 0:02:39]} Qf1+ {[%emt 0:00:55]} 34. Ka2 {[%emt 0:00:08]} Nc5 {[%emt 0:00:48]} 35. Qxc6 {[%emt 0:01:50]} Qc4+ {[%emt 0:00:35]} 36. Ka3 {[%emt 0:00:10]} h5 {[%emt 0:00:32]} 37. g5 {[%emt 0:10:16]} Qe2 {[%emt 0:00:27]} 38. g6+ {[%emt 0:01:09]} 1-0

[Event "GER-ch Youth-U18 2022"]
[Site "Willingen"]
[Date "2022.06.11"]
[Round "9.13"]
[White "Mankel, Luca"]
[Black "Wehrle, Maximilian"]
[Result "1/2-1/2"]
[ECO "C43"]
[WhiteElo "2010"]
[BlackElo "1786"]
[Annotator "TA"]
[PlyCount "98"]
[EventDate "2022.06.05"]
[EventType "swiss"]
[EventRounds "9"]
[EventCountry "GER"]
[SourceTitle "playchess.com"]
[Source "ChessBase"]
[SourceQuality "1"]
[TimeControl "40/4500+30:900+30"]

{[%evp 9,98,82,85,45,90,88,92,83,92,93,175,160,199,205,281,291,256,178,192,133,147,124,163,114,109,108,110,107,109,102,101,108,97,102,84,65,88,74,118,116,132,123,166,160,152,117,128,78,109,90,154,81,121,34,43,32,35,12,25,0,0,0,0,0,0,0,0,0,11,11,11,2,3,0,12,12,27,27,27,27,27,27,28,8,8,8,10,0,11,0,12]} 1. e4 {[%emt 0:00:00]} e5 {[%emt 0:00:00]} 2. Nf3 {[%emt 0:00:00]} Nf6 {[%emt 0:00:00]} 3. d4 {[%emt 0:00:00]} exd4 {[%emt 0:00:00]} 4. e5 {[%emt 0:00:00]} Nd5 {[%emt 0:00:00]} 5. Qxd4 {[%emt 0:00:00]} Nb6 {[%emt 0:00:00]} 6. Bd3 {[%emt 0:00:00] White is more active. C43: Petroff Defence: 3 d4.} d5 {[%emt 0:00:36]} 7. exd6 {[%emt 0:00:00]} Qxd6 {[%emt 0:00:08]} 8. O-O {[%emt 0:00:00] [#] White is better.} Qxd4 $146 {[%emt 0:00:25]} ({Predecessor:} 8... Nc6 9. Re1+ Be7 10. Qxg7 {1-0 (10) Kaloev,T (1851)-Meyer,F (1114) LSS email 2014}) 9. Nxd4 {[%emt 0:00:00]} c5 {[%emt 0:02:26]} (9... f6 $16 {was necessary.}) 10. Re1+ $18 {[%emt 0:00:00]} Kd8 {[%emt 0:00:12]} 11. Nf3 {[%emt 0:00:00][%cal Bd4f3,Bf3g5,Bg5e6][%mdl 32]} Nc6 {[%emt 0:01:03]} 12. Ng5 {[%emt 0:00:00][%csl LRf7,LRh7]} Be6 {[%emt 0:02:47]} 13. Nxe6+ {[%emt 0:00:00]} fxe6 {[%emt 0:00:08]} 14. c3 {[%emt 0:00:00]} ({Much less strong is} 14. Rxe6 $6 c4 $16) (14. Nc3 $18) 14... Kd7 {[%emt 0:01:16]} 15. Nd2 {[%emt 0:00:00]} Re8 {[%emt 0:05:47]} 16. Nf3 {[%emt 0:01:33]} (16. Ne4 $18) 16... Bd6 {[%emt 0:01:18]} 17. Bd2 {[%emt 0:01:33]} h6 {[%emt 0:02:13]} 18. Rad1 {[%emt 0:01:52]} Kc7 {[%emt 0:01:32]} 19. Re4 {[%emt 0:03:45]} Rhf8 {[%emt 0:01:02]} 20. Rde1 {[%emt 0:00:50]} Rf6 {[%emt 0:03:18]} 21. Bf1 {[%emt 0:03:55]} a6 {[%emt 0:04:23]} 22. c4 {[%emt 0:05:02]} Kd7 {[%emt 0:02:45]} 23. Bc3 {[%emt 0:00:16]} Rf7 {[%emt 0:00:33]} 24. b3 {[%emt 0:00:28]} Ree7 {[%emt 0:04:00]} 25. Bd3 {[%emt 0:00:44]} Rf4 {[%emt 0:00:49]} 26. Rxf4 {[%emt 0:10:58]} Bxf4 {[%emt 0:00:10]} 27. g3 {[%emt 0:00:11]} Bd6 {[%emt 0:01:16]} 28. Nd2 {[%emt 0:00:19]} (28. Nh4 $142) 28... Nd4 {[%emt 0:01:06]} 29. Kg2 {[%emt 0:00:10]} Kc6 {[%emt 0:02:30]} (29... e5 $142) 30. Ne4 {[%emt 0:01:36]} (30. Ba5 $142) 30... Nd7 {[%emt 0:01:09] [#]} 31. f4 {[%emt 0:03:15]} ({White should try} 31. b4 $1 $16) 31... e5 $14 {[%emt 0:01:12]} 32. Nxd6 {[%emt 0:04:03]} Kxd6 {[%emt 0:00:17]} 33. fxe5+ {[%emt 0:01:07]} Rxe5 {[%emt 0:04:43]} 34. Kf2 {[%emt 0:11:11]} Rxe1 {[%emt 0:02:30]} 35. Kxe1 $11 {[%emt 0:02:12][%mdl 4096] Endgame KBB-KNN} Ne5 {[%emt 0:01:23]} 36. Be2 {[%emt 0:00:20]} Nxe2 {[%emt 0:07:47]} 37. Kxe2 {[%emt 0:01:03] KB-KN} g6 {[%emt 0:00:21]} 38. h3 {[%emt 0:00:16]} h5 {[%emt 0:00:58]} 39. Ke3 {[%emt 0:00:13]} Ke6 {[%emt 0:01:00]} 40. Ke4 {[%emt 0:01:28]} Nf7 {[%emt 0:01:06]} 41. Kf4 {[%emt 0:19:21] Inhibits Ng5.} Nd6 {[%emt 0:22:51]} 42. Ba5 {[%emt 0:04:45] Threatens to win with Bb6.} Nc8 {[%emt 0:04:16] Inhibits Bb6.} 43. Kg5 {[%emt 0:01:29]} Kf7 {[%emt 0:00:27]} 44. Bc7 {[%emt 0:00:07]} Kg7 {[%emt 0:01:23]} 45. g4 {[%emt 0:00:36]} hxg4 {[%emt 0:00:20]} 46. hxg4 {[%emt 0:00:07]} Kf7 {[%emt 0:00:08] The position is equal.} 47. Bb8 {[%emt 0:03:34]} Kg7 {[%emt 0:00:18]} 48. Bc7 {[%emt 0:00:20]} Kf7 {[%emt 0:00:05]} 49. Bb8 {[%emt 0:00:08]} Kg7 {[%emt 0:00:06] Black escapes into a draw.  Weighted Error Value: White=0.18 (very precise) /Black=0.15 (very precise)} 1/2-1/2